fUST/lending_fUST_20240930
["ID","MTS","AMOUNT","RATE_DAILY","PERIOD"]
[339532629,1727681456739,-563.36,0.00014397,2]
[339532630,1727681456749,-500.0,0.00014397,2]
[339532631,1727681456758,-509.46156332,0.00014397,2]
[339532632,1727681456768,-667.45,0.00014397,2]
[339532633,1727681456778,-920.31,0.00014397,2]
[339532634,1727681456787,-1035.15,0.00014397,2]
[339532635,1727681456796,-500.0,0.00014397,2]
[339532636,1727681456806,-500.0,0.00014397,2]
[339532637,1727681456815,-500.0,0.00014397,2]
[339532638,1727681456825,-500.0,0.00014397,2]
[339532639,1727681456835,-552.32,0.00014397,2]
[339532640,1727681456844,-500.0,0.00014397,2]
[339532641,1727681456853,-873.33,0.00014397,2]
[339532642,1727681456864,-500.0,0.00014397,2]
[339532643,1727681456877,-500.0,0.00014397,2]
[339532644,1727681456887,-500.0,0.00014397,2]
[339532645,1727681456896,-500.0,0.00014397,2]
[339532646,1727681456906,-500.0,0.00014397,2]
[339532647,1727681456915,-500.0,0.00014397,2]
[339532648,1727681456925,-500.0,0.00014397,2]
[339532649,1727681456934,-500.0,0.00014397,2]
[339532650,1727681456944,-500.0,0.00014397,2]
[339532651,1727681456954,-500.0,0.00014397,2]
[339532652,1727681456963,-623.05791889,0.00014397,2]
[339532653,1727681456973,-500.0,0.00014397,2]
[339532654,1727681456983,-500.0,0.00014397,2]
[339532655,1727681456992,-500.0,0.00014397,2]
[339532656,1727681457002,-1264.26,0.00014397,2]
[339532657,1727681457011,-500.0,0.00014397,2]
[339532658,1727681457020,-570.93,0.00014397,2]
[339532659,1727681457031,-500.0,0.00014397,2]
[339532660,1727681457040,-500.0,0.00014397,2]
[339532661,1727681457050,-500.0,0.00014397,2]
[339532662,1727681457059,-500.0,0.00014397,2]
[339532663,1727681457068,-204.71535529,0.00014397,2]
[339532664,1727681457078,-500.0,0.00014397,2]
[339532665,1727681457087,-500.0,0.00014397,2]
[339532666,1727681457098,-500.0,0.00014397,2]
[339532667,1727681457110,-500.0,0.00014397,2]
[339532668,1727681457119,-507.93230126,0.00014397,2]
[339532669,1727681457129,-500.0,0.00014397,2]
[339532670,1727681457139,-841.61,0.00014397,2]
[339532671,1727681457150,-500.0,0.00014397,2]
[339532672,1727681457159,-500.0,0.00014397,2]
[339532673,1727681457168,-500.0,0.00014397,2]
[339532674,1727681457177,-500.0,0.00014397,2]
[339532675,1727681457187,-500.0,0.00014397,2]
[339532676,1727681457196,-500.0,0.00014397,2]
[339532677,1727681457205,-500.0,0.00014397,2]
[339532678,1727681457216,-500.0,0.00014397,2]
[339532679,1727681457226,-500.0,0.00014397,2]
[339532680,1727681457235,-500.0,0.00014397,2]
[339532681,1727681457245,-2371.27,0.00014397,2]
[339532682,1727681457254,-500.0,0.00014397,2]
[339532683,1727681457265,-500.0,0.00014397,2]
[339532684,1727681457275,-500.0,0.00014397,2]
[339532685,1727681457284,-500.0,0.00014397,2]
[339532686,1727681457294,-500.0,0.00014397,2]
[339532687,1727681457303,-500.0,0.00014397,2]
[339532688,1727681457313,-500.0,0.00014397,2]
[339532689,1727681457323,-500.0,0.00014397,2]
[339532690,1727681457333,-541.78,0.00014397,2]
[339532691,1727681457342,-500.0,0.00014397,2]
[339532692,1727681457356,-593.87286234,0.00014397,2]
[339532693,1727681457365,-1567.28,0.00014397,2]
[339532694,1727681457374,-500.0,0.00014397,2]
[339532695,1727681457384,-500.0,0.00014397,2]
[339532696,1727681457394,-500.0,0.00014397,2]
[339532697,1727681457404,-500.0,0.00014397,2]
[339532698,1727681457414,-500.0,0.00014397,2]
[339532699,1727681457423,-500.0,0.00014397,2]
[339532700,1727681457432,-500.0,0.00014397,2]
[339532701,1727681457442,-500.0,0.00014397,2]
[339532702,1727681457451,-500.0,0.00014397,2]
[339532703,1727681457461,-500.0,0.00014397,2]
[339532704,1727681457470,-500.0,0.00014397,2]
[339532705,1727681457479,-500.0,0.00014397,2]
[339532706,1727681457489,-2355.39,0.00014397,2]
[339532707,1727681457498,-1759.74,0.00014397,2]
[339532708,1727681457508,-500.0,0.00014397,2]
[339532709,1727681457517,-500.0,0.00014397,2]
[339532710,1727681457527,-426.6864073,0.00014397,2]
[339532711,1727681457536,-170.68819738,0.00014397,2]
[339532712,1727681457546,-500.0,0.00014397,2]
[339532713,1727681457611,-500.0,0.00014397,2]
[339532714,1727681457621,-500.0,0.00014397,2]
[339532715,1727681457630,-500.0,0.00014397,2]
[339532716,1727681457639,-500.0,0.00014397,2]
[339532717,1727681457648,-730.97,0.00014397,2]
[339532718,1727681457657,-656.74,0.00014397,2]
[339532719,1727681457666,-500.0,0.00014397,2]
[339532720,1727681457675,-500.0,0.00014397,2]
[339532721,1727681457685,-500.0,0.00014397,2]
[339532722,1727681457695,-500.0,0.00014397,2]
[339532723,1727681457704,-500.0,0.00014397,2]
[339532724,1727681457714,-500.0,0.00014397,2]
[339532725,1727681457723,-500.0,0.00014397,2]
[339532726,1727681457732,-500.0,0.00014397,2]
[339532727,1727681457741,-500.0,0.00014397,2]
[339532728,1727681457750,-539.91829702,0.00014397,2]
[339532729,1727681457760,-500.0,0.00014397,2]
[339532730,1727681457769,-500.0,0.00014397,2]
[339532731,1727681457778,-534.3,0.00014397,2]
[339532732,1727681457788,-500.0,0.00014397,2]
[339532733,1727681457797,-500.0,0.00014397,2]
[339532734,1727681457806,-500.0,0.00014397,2]
[339532735,1727681457815,-500.0,0.00014397,2]
[339532736,1727681457824,-368.98116772,0.00014397,2]
[339532737,1727681457835,-500.0,0.00014397,2]
[339532738,1727681457845,-500.0,0.00014397,2]
[339532739,1727681457855,-500.0,0.00014397,2]
[339532740,1727681457864,-500.0,0.00014397,2]
[339532741,1727681457875,-500.0,0.00014397,2]
[339532742,1727681457886,-500.0,0.00014397,2]
[339532743,1727681457895,-500.0,0.00014397,2]
[339532744,1727681457904,-500.0,0.00014397,2]
[339532745,1727681457913,-500.0,0.00014397,2]
[339532746,1727681457923,-500.0,0.00014397,2]
[339532747,1727681457932,-500.0,0.00014397,2]
[339532748,1727681457941,-547.6,0.00014397,2]
[339532749,1727681457952,-500.0,0.00014397,2]
[339532750,1727681457961,-500.0,0.00014397,2]
[339532751,1727681457970,-228.94710083,0.00014397,2]
[339532752,1727681457979,-500.0,0.00014397,2]
[339532753,1727681457988,-657.07,0.00014397,2]
[339532754,1727681457997,-500.0,0.00014397,2]
[339532755,1727681458007,-500.0,0.00014397,2]
[339532756,1727681458016,-500.0,0.00014397,2]
[339532757,1727681458025,-688.07,0.00014397,2]
[339532758,1727681458034,-500.0,0.00014397,2]
[339532759,1727681458044,-757.25,0.00014397,2]
[339532760,1727681458053,-500.0,0.00014397,2]
[339532761,1727681458062,-500.0,0.00014397,2]
[339532762,1727681458071,-500.0,0.00014397,2]
[339532763,1727681458080,-542.17,0.00014397,2]
[339532764,1727681458089,-895.7,0.00014397,2]
[339532765,1727681458099,-500.0,0.00014397,2]
[339532766,1727681458108,-500.0,0.00014397,2]
[339532767,1727681458117,-500.0,0.00014397,2]
[339532768,1727681458126,-500.0,0.00014397,2]
[339532769,1727681458136,-500.0,0.00014397,2]
[339532770,1727681458145,-500.0,0.00014397,2]
[339532771,1727681458154,-500.0,0.00014397,2]
[339532772,1727681458163,-500.0,0.00014397,2]
[339532773,1727681458172,-585.54,0.00014397,2]
[339532774,1727681458182,-500.0,0.00014397,2]
[339532775,1727681458191,-625.56,0.00014397,2]
[339532776,1727681458201,-500.0,0.00014397,2]
[339532777,1727681458210,-1584.19,0.00014397,2]
[339532778,1727681458220,-500.0,0.00014397,2]
[339532779,1727681458229,-500.0,0.00014397,2]
[339532780,1727681458239,-637.44,0.00014397,2]
[339532781,1727681458247,-400.32875488,0.00014397,2]
[339532782,1727681458257,-500.0,0.00014397,2]
[339532783,1727681458266,-500.0,0.00014397,2]
[339532784,1727681458275,-500.0,0.00014397,2]
[339532785,1727681458284,-673.65,0.00014397,2]
[339532786,1727681458293,-500.0,0.00014397,2]
[339532787,1727681458302,-500.0,0.00014397,2]
[339532788,1727681458311,-516.43,0.00014397,2]
[339532789,1727681458321,-500.0,0.00014397,2]
[339532790,1727681458330,-1265.9,0.00014397,2]
[339532791,1727681458339,-510.68,0.00014397,2]
[339532792,1727681458349,-500.0,0.00014397,2]
[339532793,1727681458358,-500.0,0.00014397,2]
[339532794,1727681458368,-503.496897,0.00014397,2]
[339532795,1727681458377,-1872.45,0.00014397,2]
[339532796,1727681458386,-500.0,0.00014397,2]
[339532797,1727681458395,-500.0,0.00014397,2]
[339532798,1727681458405,-500.0,0.00014397,2]
[339532799,1727681458415,-500.0,0.00014397,2]
[339532800,1727681458423,-500.0,0.00014397,2]
[339532801,1727681458432,-531.11825481,0.00014397,2]
[339532802,1727681458441,-500.0,0.00014397,2]
[339532803,1727681458450,-500.0,0.00014397,2]
[339532804,1727681458459,-500.0,0.00014397,2]
[339532805,1727681458468,-500.0,0.00014397,2]
[339532806,1727681458477,-1050.2,0.00014397,2]
[339532807,1727681458486,-500.0,0.00014397,2]
[339532808,1727681458495,-500.0,0.00014397,2]
[339532809,1727681458504,-578.15,0.00014397,2]
[339532810,1727681458513,-606.81,0.00014397,2]
[339532811,1727681458522,-563.51,0.00014397,2]
[339532812,1727681458530,-500.0,0.00014397,2]
[339532813,1727681458540,-500.0,0.00014397,2]
[339532814,1727681458549,-500.0,0.00014397,2]
[339532815,1727681458557,-235.203779,0.00014397,2]
[339532816,1727681458566,-500.0,0.00014397,2]
[339532817,1727681458576,-500.0,0.00014397,2]
[339532818,1727681458585,-741.09,0.00014397,2]
[339532819,1727681458594,-500.0,0.00014397,2]
[339532820,1727681458603,-305.87265135,0.00014397,2]
[339532821,1727681458980,-194.12734865,0.00014397,2]
[339532822,1727681458990,-390.46379561,0.00014397,2]
[339532823,1727681459001,-500.0,0.00014397,2]
[339532824,1727681459010,-157.560827,0.00014397,2]
[339532825,1727681459020,-151.0,0.00014397,2]
[339532826,1727681459030,-151.0,0.00014397,2]
[339532827,1727681459040,-500.0,0.00014397,2]
[339532828,1727681459050,-500.0,0.00014397,2]
[339532829,1727681459059,-148.02819151,0.00014397,2]
[339532830,1727681460388,-500.0,0.00014122,2]
[339532831,1727681460399,-351.97180849,0.00014397,2]
[339532832,1727681460409,-157.560827,0.00014397,2]
[339532833,1727681460419,-500.0,0.00014397,2]
[339532834,1727681460429,-614.66,0.00014397,2]
[339532835,1727681460438,-2000.0,0.00014397,2]
[339532836,1727681460448,-2000.0,0.00014397,2]
[339532837,1727681460458,-2045.307947,0.00014397,2]
[339532838,1727681460468,-1847.34,0.00014397,2]
[339532839,1727681460478,-151.0,0.00014397,2]
[339532840,1727681460489,-500.0,0.00014397,2]
[339532841,1727681460499,-500.0,0.00014397,2]
[339532842,1727681460509,-1787.443551,0.00014397,2]
[339532843,1727681460519,-2789.9,0.00014397,2]
[339532844,1727681460530,-1787.443551,0.00014397,2]
[339532845,1727681460540,-222.0098,0.00014397,2]
[339532846,1727681460550,-500.0,0.00014397,2]
[339532847,1727681460560,-500.0,0.00014397,2]
[339532848,1727681460570,-434.97764815,0.00014397,2]
[339532849,1727681460580,-309.114078,0.00014397,2]
[339532850,1727681460590,-173.702784,0.00014397,2]
[339532851,1727681460607,-309.114078,0.00014397,2]
[339532852,1727681460617,-173.702784,0.00014397,2]
[339532853,1727681460627,-249.371505,0.00014397,2]
[339532854,1727681460637,-249.371505,0.00014397,2]
[339532855,1727681460647,-503.816295,0.00014397,2]
[339532856,1727681460657,-503.816295,0.00014397,2]
[339532857,1727681460667,-151.0,0.00014397,2]
[339532858,1727681460677,-980.355677,0.00014397,2]
[339532859,1727681460687,-980.355677,0.00014397,2]
[339532860,1727681460697,-6290.281849,0.00014397,2]
[339532861,1727681460706,-6290.281849,0.00014397,2]
[339532862,1727681460716,-151.0,0.00014397,2]
[339532863,1727681460726,-151.0,0.00014397,2]
[339532864,1727681460736,-151.0,0.00014397,2]
[339532865,1727681460746,-587.780477,0.00014397,2]
[339532866,1727681460756,-151.0,0.00014397,2]
[339532867,1727681460766,-587.780477,0.00014397,2]
[339532868,1727681460775,-1987.518951,0.00014397,2]
[339532869,1727681460785,-1987.518951,0.00014397,2]
[339532870,1727681460795,-177.746097,0.00014397,2]
[339532871,1727681460805,-177.746097,0.00014397,2]
[339532872,1727681460815,-713.05771,0.00014397,2]
[339532873,1727681460825,-713.05771,0.00014397,2]
[339532874,1727681460835,-322.567389,0.00014397,2]
[339532875,1727681460846,-322.567389,0.00014397,2]
[339532876,1727681460858,-151.0,0.00014397,2]
[339532877,1727681460869,-151.0,0.00014397,2]
[339532878,1727681460882,-150.112233,0.000144,2]
[339532879,1727681460891,-150.112233,0.000144,2]
[339532880,1727681460901,-150.112233,0.000144,2]
[339532881,1727681460911,-1000.0,0.000144,2]
[339532882,1727681460923,-1038.64285696,0.000144,2]
[339532883,1727681460932,-300.97594335,0.000144,2]
[339532884,1727681460942,-175.11015426,0.000144,2]
[339532885,1727681460955,-1000.0,0.000144,2]
[339532886,1727681460965,-1000.0,0.000144,2]
[339532887,1727681460976,-295.86291135,0.000144,2]
[339532888,1727681461457,500.0,0.00014111,2]
[339532889,1727681461496,437.59653281,0.00014111,2]
[339532890,1727681461566,-0.00741321,0.00014396,2]
[339532891,1727681461577,-503.92541907,0.00014396,2]
[339532892,1727681461587,-704.13708865,0.000144,2]
[339532893,1727681461597,-1500.0,0.00014427,2]
[339532894,1727681461606,-1500.0,0.00014427,2]
[339532895,1727681461615,-1008.2655006,0.00014427,2]
[339532896,1727681461625,-375.22448258,0.00014427,2]
[339532897,1727681461635,-2000.0,0.00014455,2]
[339532898,1727681461644,-2000.0,0.00014455,2]
[339532899,1727681461653,-2500.0,0.00014482,2]
[339532900,1727681461662,-2500.0,0.00014482,2]
[339532901,1727681461671,-150.112233,0.000145,2]
[339532902,1727681461681,-1800.78011353,0.0001451,2]
[339532903,1727681461690,-3000.0,0.0001451,2]
[339532904,1727681461699,-500.0,0.00014523,2]
[339532905,1727681461708,-150.0,0.00014523,2]
[339532906,1727681461718,-541.0,0.00014523,2]
[339532907,1727681461728,-150.0,0.00014523,2]
[339532908,1727681461737,-150.0,0.00014525,2]
[339532909,1727681461746,-135247.59630866,0.00014527,2]
[339532910,1727681461756,-151.0,0.00014527,2]
[339532911,1727681461766,-191.929704,0.00014527,2]
[339532912,1727681461775,-191.929704,0.00014527,2]
[339532913,1727681461784,-455.547621,0.00014527,2]
[339532914,1727681461794,-455.547621,0.00014527,2]
[339532915,1727681461804,-646.373244,0.00014527,2]
[339532916,1727681461814,-646.373244,0.00014527,2]
[339532917,1727681461823,-1548.957586,0.00014527,2]
[339532918,1727681461833,-151.0,0.00014527,2]
[339532919,1727681461842,-1548.957586,0.00014527,2]
[339532920,1727681461854,-151.0,0.00014527,2]
[339532921,1727681461863,-3500.0,0.00014537,2]
[339532922,1727681461875,-151.0,0.00014537,2]
[339532923,1727681461885,-1987.518951,0.00014537,2]
[339532924,1727681461894,-1987.518951,0.00014537,2]
[339532925,1727681461904,-177.746097,0.00014537,2]
[339532926,1727681461913,-177.746097,0.00014537,2]
[339532927,1727681461923,-713.05771,0.00014537,2]
[339532928,1727681461933,-713.05771,0.00014537,2]
[339532929,1727681461943,-322.567389,0.00014537,2]
[339532930,1727681461953,-322.567389,0.00014537,2]
[339532931,1727681461962,-151.0,0.00014537,2]
[339532932,1727681461972,-500.0,0.0001455,2]
[339532933,1727681461982,-150.0,0.0001455,2]
[339532934,1727681461992,-541.0,0.0001455,2]
[339532935,1727681462003,-150.0,0.0001455,2]
[339532936,1727681462012,-4000.0,0.00014564,2]
[339532937,1727681462022,-500.0,0.00014578,2]
[339532938,1727681462031,-210.21126895,0.00014578,2]
[339532939,1727681462041,-541.0,0.00014578,2]
[339532940,1727681462050,-150.0,0.00014578,2]
[339532941,1727681462059,-4500.0,0.00014592,2]
[339532942,1727681462069,-150.112233,0.000146,2]
[339532943,1727681462078,-150.112233,0.000146,2]
[339532944,1727681462088,-153.885685,0.000146,2]
[339532945,1727681462098,-153.0,0.000146,2]
[339532946,1727681462108,-153.0,0.000146,2]
[339532947,1727681462117,-153.0,0.000146,2]
[339532948,1727681462127,-500.0,0.00014605,2]
[339532949,1727681462136,-541.0,0.00014605,2]
[339532950,1727681462145,-150.0,0.00014605,2]
[339532951,1727681462155,-525.968,0.00014617,2]
[339532952,1727681462165,-150.217,0.00014617,2]
[339532953,1727681462175,-55966.0,0.00014617,2]
[339532954,1727681462185,-5000.0,0.00014619,2]
[339532955,1727681462193,-500.0,0.00014633,2]
[339532956,1727681462203,-541.0,0.00014633,2]
[339532957,1727681462212,-150.0,0.00014633,2]
[339532958,1727681462222,-5500.0,0.00014647,2]
[339532959,1727681462232,-151.0,0.00014648,2]
[339532960,1727681462242,-177.647,0.00014648,2]
[339532961,1727681462252,-500.0,0.00014659,2]
[339532962,1727681462263,-500.0,0.00014659,2]
[339532963,1727681462272,-500.0,0.00014659,2]
[339532964,1727681462284,-500.0,0.00014659,2]
[339532965,1727681462294,-500.0,0.00014659,2]
[339532966,1727681462303,-500.0,0.00014659,2]
[339532967,1727681462313,-500.0,0.00014659,2]
[339532968,1727681462323,-500.0,0.00014659,2]
[339532969,1727681462332,-500.0,0.00014659,2]
[339532970,1727681462342,-500.0,0.00014659,2]
[339532971,1727681462352,-691.30539446,0.0001466,2]
[339532972,1727681462362,-541.0,0.0001466,2]
[339532973,1727681462372,-250.0,0.0001466,2]
[339532974,1727681462381,-500.0,0.0001466,2]
[339532975,1727681462391,-500.0,0.0001466,2]
[339532976,1727681462400,-500.0,0.0001466,2]
[339532977,1727681462410,-500.0,0.0001466,2]
[339532978,1727681462419,-500.0,0.0001466,2]
[339532979,1727681462429,-500.0,0.0001466,2]
[339532980,1727681462439,-500.0,0.0001466,2]
[339532981,1727681462449,-606.96,0.0001466,2]
[339532982,1727681462459,-500.0,0.0001466,2]
[339532983,1727681462469,-523.19442121,0.0001466,2]
[339532984,1727681462478,-500.0,0.0001466,2]
[339532985,1727681462487,-882.08,0.0001466,2]
[339532986,1727681462497,-557.81735024,0.0001466,2]
[339532987,1727681462507,-619.22,0.0001466,2]
[339532988,1727681462516,-500.0,0.0001466,2]
[339532989,1727681462526,-681.32,0.0001466,2]
[339532990,1727681462535,-644.5,0.0001466,2]
[339532991,1727681462544,-500.0,0.0001466,2]
[339532992,1727681462555,-500.0,0.0001466,2]
[339532993,1727681462564,-532.54,0.0001466,2]
[339532994,1727681462574,-500.0,0.0001466,2]
[339532995,1727681462583,-2595.01,0.0001466,2]
[339532996,1727681462592,-500.0,0.0001466,2]
[339532997,1727681462604,-500.0,0.0001466,2]
[339532998,1727681462613,-500.0,0.0001466,2]
[339532999,1727681462623,-1069.08,0.0001466,2]
[339533000,1727681462632,-500.0,0.0001466,2]
[339533001,1727681462641,-1067.73,0.0001466,2]
[339533002,1727681462650,-500.0,0.0001466,2]
[339533003,1727681462659,-500.0,0.0001466,2]
[339533004,1727681462668,-500.0,0.0001466,2]
[339533005,1727681462677,-548.62,0.0001466,2]
[339533006,1727681462686,-500.0,0.0001466,2]
[339533007,1727681462696,-500.0,0.0001466,2]
[339533008,1727681462705,-500.0,0.0001466,2]
[339533009,1727681462715,-500.0,0.0001466,2]
[339533010,1727681462724,-500.0,0.0001466,2]
[339533011,1727681462734,-500.0,0.0001466,2]
[339533012,1727681462743,-500.0,0.0001466,2]
[339533013,1727681462753,-500.0,0.0001466,2]
[339533014,1727681462763,-500.0,0.0001466,2]
[339533015,1727681462772,-578.21,0.0001466,2]
[339533016,1727681462782,-500.0,0.0001466,2]
[339533017,1727681462791,-548.16,0.0001466,2]
[339533018,1727681462801,-500.0,0.0001466,2]
[339533019,1727681462811,-500.0,0.0001466,2]
[339533020,1727681462820,-500.0,0.0001466,2]
[339533021,1727681462830,-1777.39,0.0001466,2]
[339533022,1727681462840,-757.67,0.0001466,2]
[339533023,1727681462851,-500.0,0.0001466,2]
[339533024,1727681462863,-2008.58,0.0001466,2]
[339533025,1727681462876,-519.09,0.0001466,2]
[339533026,1727681462886,-500.0,0.0001466,2]
[339533027,1727681462895,-500.0,0.0001466,2]
[339533028,1727681462905,-634.32,0.0001466,2]
[339533029,1727681462915,-500.0,0.0001466,2]
[339533030,1727681462924,-500.0,0.0001466,2]
[339533031,1727681462934,-517.37541417,0.0001466,2]
[339533032,1727681462943,-536.79,0.0001466,2]
[339533033,1727681462953,-500.0,0.0001466,2]
[339533034,1727681462962,-500.0,0.0001466,2]
[339533035,1727681462972,-298.65973367,0.0001466,2]
[339533036,1727681462981,-500.0,0.0001466,2]
[339533037,1727681462991,-2433.54,0.0001466,2]
[339533038,1727681463000,-549.2,0.0001466,2]
[339533039,1727681463010,-29674.95,0.0001466,2]
[339533040,1727681463020,-500.0,0.0001466,2]
[339533041,1727681463030,-500.0,0.0001466,2]
[339533042,1727681463039,-1320.62,0.0001466,2]
[339533043,1727681463049,-4317.23,0.0001466,2]
[339533044,1727681463059,-500.0,0.0001466,2]
[339533045,1727681463069,-1640.88,0.0001466,2]
[339533046,1727681463079,-377.49941226,0.0001466,2]
[339533047,1727681463088,-977.41,0.0001466,2]
[339533048,1727681463100,-659.94,0.0001466,2]
[339533049,1727681463110,-500.0,0.0001466,2]
[339533050,1727681463120,-500.0,0.0001466,2]
[339533051,1727681463129,-500.0,0.0001466,2]
[339533052,1727681463138,-500.0,0.0001466,2]
[339533053,1727681463148,-500.0,0.0001466,2]
[339533054,1727681463159,-500.0,0.0001466,2]
[339533055,1727681463168,-500.0,0.0001466,2]
[339533056,1727681463177,-542.53,0.0001466,2]
[339533057,1727681463188,-500.0,0.0001466,2]
[339533058,1727681463198,-500.0,0.0001466,2]
[339533059,1727681463207,-1804.61,0.0001466,2]
[339533060,1727681463217,-500.0,0.0001466,2]
[339533061,1727681463227,-500.0,0.0001466,2]
[339533062,1727681463236,-1742.13,0.0001466,2]
[339533063,1727681463246,-500.0,0.0001466,2]
[339533064,1727681463256,-500.0,0.0001466,2]
[339533065,1727681463266,-500.0,0.0001466,2]
[339533066,1727681463276,-500.0,0.0001466,2]
[339533067,1727681463286,-500.0,0.0001466,2]
[339533068,1727681463297,-500.0,0.0001466,2]
[339533069,1727681463306,-500.0,0.0001466,2]
[339533070,1727681463317,-680.83,0.0001466,2]
[339533071,1727681463327,-500.0,0.0001466,2]
[339533072,1727681463336,-720.74,0.0001466,2]
[339533073,1727681463346,-500.0,0.0001466,2]
[339533074,1727681463357,-514.50907075,0.0001466,2]
[339533075,1727681463367,-654.13,0.0001466,2]
[339533076,1727681463377,-500.0,0.0001466,2]
[339533077,1727681463388,-500.0,0.0001466,2]
[339533078,1727681463398,-500.0,0.0001466,2]
[339533079,1727681463407,-416.0662972,0.0001466,2]
[339533080,1727681463417,-500.0,0.0001466,2]
[339533081,1727681463427,-500.0,0.0001466,2]
[339533082,1727681463436,-666.8,0.0001466,2]
[339533083,1727681463446,-734.87,0.0001466,2]
[339533084,1727681463457,-511.91481008,0.0001466,2]
[339533085,1727681463467,-500.0,0.0001466,2]
[339533086,1727681463476,-500.0,0.0001466,2]
[339533087,1727681463486,-500.0,0.0001466,2]
[339533088,1727681463496,-500.0,0.0001466,2]
[339533089,1727681463506,-500.0,0.0001466,2]
[339533090,1727681463515,-500.0,0.0001466,2]
[339533091,1727681463525,-500.0,0.0001466,2]
[339533092,1727681463534,-500.0,0.0001466,2]
[339533093,1727681463544,-562.16,0.0001466,2]
[339533094,1727681463554,-500.0,0.0001466,2]
[339533095,1727681463563,-500.0,0.0001466,2]
[339533096,1727681463573,-500.0,0.0001466,2]
[339533097,1727681463583,-672.32,0.0001466,2]
[339533098,1727681463593,-565.82,0.0001466,2]
[339533099,1727681463603,-500.0,0.0001466,2]
[339533100,1727681463613,-500.0,0.0001466,2]
[339533101,1727681463623,-500.0,0.0001466,2]
[339533102,1727681463633,-500.0,0.0001466,2]
[339533103,1727681463643,-653.83,0.0001466,2]
[339533104,1727681463653,-500.0,0.0001466,2]
[339533105,1727681463664,-500.0,0.0001466,2]
[339533106,1727681463673,-500.0,0.0001466,2]
[339533107,1727681463683,-500.0,0.0001466,2]
[339533108,1727681463693,-500.0,0.0001466,2]
[339533109,1727681463702,-500.0,0.0001466,2]
[339533110,1727681463712,-151.0,0.0001466,2]
[339533111,1727681463721,-500.0,0.0001466,2]
[339533112,1727681463731,-1317.96,0.0001466,2]
[339533113,1727681463741,-500.0,0.0001466,2]
[339533114,1727681463750,-500.0,0.0001466,2]
[339533115,1727681463760,-500.0,0.0001466,2]
[339533116,1727681463770,-500.0,0.0001466,2]
[339533117,1727681463780,-1520.4,0.0001466,2]
[339533118,1727681463790,-1061.16,0.0001466,2]
[339533119,1727681463799,-500.0,0.0001466,2]
[339533120,1727681463809,-500.0,0.0001466,2]
[339533121,1727681463818,-518.1299624,0.0001466,2]
[339533122,1727681463827,-500.0,0.0001466,2]
[339533123,1727681463837,-1152.77,0.0001466,2]
[339533124,1727681463847,-500.0,0.0001466,2]
[339533125,1727681463858,-500.0,0.0001466,2]
[339533126,1727681463867,-500.0,0.0001466,2]
[339533127,1727681463880,-3977.0,0.0001466,2]
[339533128,1727681463890,-3805.25,0.0001466,2]